Workbook

Sheet 問題
B2: 問題4.5 発熱反応による温度変化を伴う反応 [VBA：数値積分、オイラー法]
B3: 反応A → Bを回分操作の完全混合断熱リアクター（熱の出入りがない：q=0）で反応させる。反応物Aの物質収支と熱収支はそれぞれ次のように表せられる。 (4.19) (4.20) 反応速度式は次式で表わされる。 (4.21) この反応は発熱反応である。なお，=1000 kg m-3，Cp=4180 J kg-1 K-1, Hrxn=－88244 J mol-1，k0=6.2×104 m3 mol-1 min-1, Ea=77330 J mol-1である。気体定数はR=8.314 J mol-1 K-1。初期の反応物濃度はCA0=8020 mol m-3，温度はT0=366 Kである。以下の問に答えなさい。 1) CA=3,200 mol m-3になるまでの時間t [min]を数値積分（シート計算によるSimpson則）で求めなさい。なお，式(4.19)と式(4.20)から， (4.22) の関係が得られる。この式を反応速度式（式(4.21)）の温度Tに代入してCAについて積分を行う。分割数は40としなさい。 2) 反応物濃度と温度の時間変化をオイラー法（VBAでマクロを作成。解くべき微分方程式2本はFunction文を使って呼び出して計算すること。式(4.22)は使わない）で解いて，グラフを作成しなさい。時間刻みtは1 minで，t=40 minまで計算する。

Sheet 1)実習
A7: MOD(数値、除数)： | C7: は割算でわりきれなかった余りを返す
A11: 分割数n | B11: i | C11: CA | D11: f(CA) | E11: even | F11: odd
B12: 0
A13: 積分下限a | B13: 1
B14: 2 | G14: ①A12に分割数（例えば40）を入力
A15: 積分上限b | B15: 3 | G15: ②A14とA16に積分区間aとbを入力
B16: 4 | G16: ③A18で刻み幅を計算する
A17: 刻み幅h | B17: 5 | G17: ④A12-A32にオートフィルで番号0-40を入力
B18: 6 | G18: ⑤CA,i+1=CA,i+hによりCA(i)の値をC12-C32に入力
B19: 7 | G19: ⑥CA,iに対応したf(CA,i)を計算しD12-D32に入力
B20: 8 | G20: ⑦Sf(CA,i)（偶数部分）とSf(CA,i)（奇数部分）に分ける
B21: 9 | G21: ⑧Sf(CA,i)（偶数部分）の和とSf(CA,i)（奇数部分）の和を計算する（E33, F33）
B22: 10 | G22: ⑨面積を求める（B54）
B23: 11
B24: 12
B25: 13 | I25: k0 | J25: 62000 | K25: [m3 mol-1 min-1]
B26: 14 | I26: Ea | J26: 77330 | K26: [J mol-1]
B27: 15 | I27: DHrxn | J27: -88244 | K27: [J mol-1]
B28: 16 | I28: Cp | J28: 4180 | K28: [J kg-1 K-1]
B29: 17 | I29: r | J29: 1000 | K29: [kg m-3]
B30: 18 | I30: CA0 | J30: 8020 | K30: [mol m-3]
B31: 19 | I31: T | J31: 366 | K31: [K]
B32: 20
B33: 21
B34: 22
B35: 23
B36: 24
B37: 25
B38: 26
B39: 27
B40: 28
B41: 29
B42: 30
B43: 31
B44: 32
B45: 33
B46: 34
B47: 35
B48: 36
B49: 37
B50: 38
B51: 39
B52: 40
A54: 積分値

Sheet 1)解答
A7: MOD(数値、除数)： | C7: は割算でわりきれなかった余りを返す
A11: 分割数n | B11: i | C11: CA | D11: f(CA) | E11: even | F11: odd
A12: 40 | B12: 0 | C12: =$A$14+$A$18*B12 -> 8020 | D12: =-1/$J$25*1/(C12^2*EXP(-$J$26/(8.314*($J$31-(-$J$27)/($J$29*$J$28)*(C12-$J$30))))) -> -0.02729039654 | E12: =IF(MOD(B12,2)=0,D12,0) -> -0.02729039654 | F12: =IF(MOD(B12,2)=1,D12,0) -> 0
A13: 積分下限a | B13: 1 | C13: =$A$14+$A$18*B13 -> 7899.5 | D13: =-1/$J$25*1/(C13^2*EXP(-$J$26/(8.314*($J$31-(-$J$27)/($J$29*$J$28)*(C13-$J$30))))) -> -0.02360359467 | E13: =IF(MOD(B13,2)=0,D13,0) -> 0 | F13: =IF(MOD(B13,2)=1,D13,0) -> -0.02360359467
A14: =J30 -> 8020 | B14: 2 | C14: =$A$14+$A$18*B14 -> 7779 | D14: =-1/$J$25*1/(C14^2*EXP(-$J$26/(8.314*($J$31-(-$J$27)/($J$29*$J$28)*(C14-$J$30))))) -> -0.02047354547 | E14: -0.02047354547 | F14: 0 | G14: ①A12に分割数（例えば40）を入力
A15: 積分上限b | B15: 3 | C15: 7658.5 | D15: =-1/$J$25*1/(C15^2*EXP(-$J$26/(8.314*($J$31-(-$J$27)/($J$29*$J$28)*(C15-$J$30))))) -> -0.01780900073 | E15: 0 | F15: -0.01780900073 | G15: ②A14とA16に積分区間aとbを入力
A16: 3200 | B16: 4 | C16: 7538 | D16: -0.015534722 | E16: -0.015534722 | F16: 0 | G16: ③A18で刻み幅を計算する
A17: 刻み幅h | B17: 5 | C17: 7417.5 | D17: -0.0135885023 | E17: 0 | F17: -0.0135885023 | G17: ④A12-A32にオートフィルで番号0-40を入力
A18: =(A16-A14)/A12 -> -120.5 | B18: 6 | C18: 7297 | D18: -0.01191877121 | E18: -0.01191877121 | F18: 0 | G18: ⑤CA,i+1=CA,i+hによりCA(i)の値をC12-C32に入力
B19: 7 | C19: 7176.5 | D19: -0.01048266375 | E19: 0 | F19: -0.01048266375 | G19: ⑥CA,iに対応したf(CA,i)を計算しD12-D32に入力
B20: 8 | C20: 7056 | D20: -0.009244458919 | E20: -0.009244458919 | F20: 0 | G20: ⑦Sf(CA,i)（偶数部分）とSf(CA,i)（奇数部分）に分ける
B21: 9 | C21: 6935.5 | D21: -0.008174313672 | E21: 0 | F21: -0.008174313672 | G21: ⑧Sf(CA,i)（偶数部分）の和とSf(CA,i)（奇数部分）の和を計算する（E33, F33）
B22: 10 | C22: 6815 | D22: -0.007247233722 | E22: -0.007247233722 | F22: 0 | G22: ⑨面積を求める（B54）
B23: 11 | C23: 6694.5 | D23: -0.006442234673 | E23: 0 | F23: -0.006442234673
B24: 12 | C24: 6574 | D24: -0.00574165653 | E24: -0.00574165653 | F24: 0
B25: 13 | C25: 6453.5 | D25: -0.005130602134 | E25: 0 | F25: -0.005130602134 | I25: k0 | J25: 62000 | K25: [m3 mol-1 min-1]
B26: 14 | C26: 6333 | D26: -0.004596475975 | E26: -0.004596475975 | F26: 0 | I26: Ea | J26: 77330 | K26: [J mol-1]
B27: 15 | C27: 6212.5 | D27: -0.004128604524 | E27: 0 | F27: -0.004128604524 | I27: DHrxn | J27: -88244 | K27: [J mol-1]
B28: 16 | C28: 6092 | D28: -0.00371792293 | E28: -0.00371792293 | F28: 0 | I28: Cp | J28: 4180 | K28: [J kg-1 K-1]
B29: 17 | C29: 5971.5 | D29: -0.003356715875 | E29: 0 | F29: -0.003356715875 | I29: r | J29: 1000 | K29: [kg m-3]
B30: 18 | C30: 5851 | D30: -0.003038402736 | E30: -0.003038402736 | F30: 0 | I30: CA0 | J30: 8020 | K30: [mol m-3]
B31: 19 | C31: 5730.5 | D31: -0.002757359073 | E31: 0 | F31: -0.002757359073 | I31: T | J31: 366 | K31: [K]
B32: 20 | C32: 5610 | D32: -0.002508767985 | E32: -0.002508767985 | F32: 0
B33: 21 | C33: 5489.5 | D33: -0.002288496059 | E33: 0 | F33: -0.002288496059
B34: 22 | C34: 5369 | D34: -0.002092989636 | E34: -0.002092989636 | F34: 0
B35: 23 | C35: 5248.5 | D35: -0.001919187886 | E35: 0 | F35: -0.001919187886
B36: 24 | C36: 5128 | D36: -0.001764449821 | E36: -0.001764449821 | F36: 0
B37: 25 | C37: 5007.5 | D37: -0.001626492906 | E37: 0 | F37: -0.001626492906
B38: 26 | C38: 4887 | D38: -0.001503341328 | E38: -0.001503341328 | F38: 0
B39: 27 | C39: 4766.5 | D39: -0.00139328233 | E39: 0 | F39: -0.00139328233
B40: 28 | C40: 4646 | D40: -0.001294829297 | E40: -0.001294829297 | F40: 0
B41: 29 | C41: 4525.5 | D41: -0.001206690525 | E41: 0 | F41: -0.001206690525
B42: 30 | C42: 4405 | D42: -0.001127742754 | E42: -0.001127742754 | F42: 0
B43: 31 | C43: 4284.5 | D43: -0.001057008736 | E43: 0 | F43: -0.001057008736
B44: 32 | C44: 4164 | D44: -0.0009936382356 | E44: -0.0009936382356 | F44: 0
B45: 33 | C45: 4043.5 | D45: -0.0009368919337 | E45: 0 | F45: -0.0009368919337
B46: 34 | C46: 3923 | D46: -0.0008861278436 | E46: -0.0008861278436 | F46: 0
B47: 35 | C47: 3802.5 | D47: -0.0008407898861 | E47: 0 | F47: -0.0008407898861
B48: 36 | C48: 3682 | D48: -0.0008003983592 | E48: -0.0008003983592 | F48: 0
B49: 37 | C49: 3561.5 | D49: -0.0007645420895 | E49: 0 | F49: -0.0007645420895
B50: 38 | C50: 3441 | D50: -0.0007328721079 | E50: -0.0007328721079 | F50: 0
B51: 39 | C51: 3320.5 | D51: -0.0007050967464 | E51: 0 | F51: -0.0007050967464
B52: 40 | C52: =$A$14+$A$18*B52 -> 3200 | D52: -0.0006809781081 | E52: -0.0006809781081 | F52: 0
E53: =SUM(E13:E51) -> -0.09521834686 | F53: =SUM(F12:F52) -> -0.1082120705
A54: 積分値 | B54: =A18*(D12+D52+4*F53+2*E53)/3 -> 26.15879674

Sheet 2）実習
C3: k0 | D3: 62000 | E3: [m3 mol-1 min-1]
C4: Ea | D4: 77330 | E4: [J mol-1]
C5: DHrxn | D5: -88244 | E5: [J mol-1]
C6: Cp | D6: 4180 | E6: [J kg-1 K-1]
C7: r | D7: 1000 | E7: [kg m-3]
C8: CA0 | D8: 8020 | E8: [mol m-3]
C9: T | D9: 366 | E9: [K]
C10: t [min] | D10: CA [mol m-3] | E10: T [K]
C11: 0
C12: 1
C13: 2
C14: 3
C15: 4
C16: 5
C17: 6
C18: 7
C19: 8
C20: 9
C21: 10
C22: 11
C23: 12
C24: 13
C25: 14
C26: 15
C27: 16
C28: 17
C29: 18
C30: 19
C31: 20
C32: 21
C33: 22
C34: 23
C35: 24
C36: 25
C37: 26
C38: 27
C39: 28
C40: 29
C41: 30
C42: 31
C43: 32
C44: 33
C45: 34
C46: 35
C47: 36
C48: 37
C49: 38
C50: 39
C51: 40

Sheet 2)解答
C3: k0 | D3: 62000 | E3: [m3 mol-1 min-1]
C4: Ea | D4: 77330 | E4: [J mol-1]
C5: DHrxn | D5: -88244 | E5: [J mol-1]
C6: Cp | D6: 4180 | E6: [J kg-1 K-1]
C7: r | D7: 1000 | E7: [kg m-3]
C8: CA0 | D8: 8020 | E8: [mol m-3]
C9: T | D9: 366 | E9: [K]
C10: t [min] | D10: CA [mol m-3] | E10: T [K]
C11: 0 | D11: 8020 | E11: 366
C12: 1 | D12: 7983.357073 | E12: 366.773569
C13: 2 | D13: 7945.048997 | E13: 367.582291
C14: 3 | D14: 7904.930629 | E14: 368.42923
C15: 4 | D15: 7862.8378 | E15: 369.317852
C16: 5 | D16: 7818.583932 | E16: 370.2520956
C17: 6 | D17: 7771.955882 | E17: 371.2364606
C18: 7 | D18: 7722.7088 | E18: 372.2761159
C19: 8 | D19: 7670.559711 | E19: 373.3770356
C20: 9 | D20: 7615.179416 | E20: 374.5461693
C21: 10 | D21: 7556.182185 | E21: 375.7916601
C22: 11 | D22: 7493.112483 | E22: 377.1231249
C23: 12 | D23: 7425.427658 | E23: 378.5520196
C24: 13 | D24: 7352.475073 | E24: 380.0921219
C25: 14 | D25: 7273.461436 | E25: 381.7601792
C26: 15 | D26: 7187.410995 | E26: 383.5767905
C27: 16 | D27: 7093.107512 | E27: 385.5676317
C28: 17 | D28: 6989.012071 | E28: 387.7651911
C29: 18 | D29: 6873.143987 | E29: 390.2112828
C30: 19 | D30: 6742.903769 | E30: 392.9607846
C31: 20 | D31: 6594.802214 | E31: 396.0873573
C32: 21 | D32: 6424.031982 | E32: 399.6924885
C33: 22 | D33: 6223.764243 | E33: 403.9203417
C34: 23 | D34: 5983.943913 | E34: 408.9831898
C35: 24 | D35: 5689.12629 | E35: 415.207086
C36: 25 | D36: 5314.393573 | E36: 423.1180702
C37: 26 | D37: 4817.303272 | E37: 433.6121459
C38: 27 | D38: 4121.983606 | E38: 448.2910427
C39: 28 | D39: 3094.376145 | E39: 469.9848688
C40: 29 | D40: 1585.38931 | E40: 501.8410971
C41: 30 | D41: 194.1517714 | E41: 531.2115194
C42: 31 | D42: 136.0148698 | E42: 532.4388478
C43: 32 | D43: 106.3070697 | E43: 533.0660093
C44: 33 | D44: 87.78251037 | E44: 533.4570814
C45: 34 | D45: 74.98885139 | E45: 533.7271684
C46: 35 | D46: 65.56986827 | E46: 533.9260126
C47: 36 | D47: 58.32154011 | E47: 534.0790321
C48: 37 | D48: 52.55845798 | E48: 534.2006965
C49: 38 | D49: 47.85946671 | E49: 534.2998969
C50: 39 | D50: 43.95052629 | E50: 534.3824186
C51: 40 | D51: 40.6451646 | E51: 534.4521981
